[Event "Titled Tuesday Blitz August 15 Late 2023"]
[White "Danishcrown"]
[Black "arturdailima"]
[WhiteElo "2041"]
[BlackElo "2326"]
[Result "1-0"]
[Round "3"]
[TimeControl "180+1"]
[Date "2023.08.15"]
[WhiteClock "0:00:19"]
[BlackClock "0:01:21"]
[Board "180"]

1. d4 {[%clk 0:03:00]}  Nf6 {[%clk 0:02:59]} 2. Bf4 {[%clk 0:03:01]}  c5 {[%clk 0:02:59]} 3. e3 {[%clk 0:02:59]}  Nd5 {[%clk 0:02:58]} 4. Bg3 {[%clk 0:02:59]}  Qb6 {[%clk 0:02:57]} 5. b3 {[%clk 0:02:52]}  d6 {[%clk 0:02:44]} 6. Ne2 {[%clk 0:02:49]}  g6 {[%clk 0:02:39]} 7. c4 {[%clk 0:02:42]}  Nf6 {[%clk 0:02:36]} 8. Nbc3 {[%clk 0:02:38]}  Bg7 {[%clk 0:02:35]} 9. Rc1 {[%clk 0:02:33]}  O-O {[%clk 0:02:33]} 10. Nf4 {[%clk 0:02:13]}  Nc6 {[%clk 0:02:27]} 11. dxc5 {[%clk 0:02:06]}  dxc5 {[%clk 0:02:22]} 12. Nfd5 {[%clk 0:02:06]}  Nxd5 {[%clk 0:02:21]} 13. Nxd5 {[%clk 0:02:05]}  Qa5+ {[%clk 0:02:21]} 14. Qd2 {[%clk 0:02:05]}  Qxd2+ {[%clk 0:02:17]} 15. Kxd2 {[%clk 0:02:05]}  Rd8 {[%clk 0:02:17]} 16. Ke1 {[%clk 0:01:54]}  a6 {[%clk 0:02:15]} 17. Bc7 {[%clk 0:01:39]}  Re8 {[%clk 0:02:10]} 18. Bb6 {[%clk 0:01:34]}  Rf8 {[%clk 0:01:58]} 19. Bxc5 {[%clk 0:01:33]}  Be6 {[%clk 0:01:55]} 20. Nxe7+ {[%clk 0:01:30]}  Nxe7 {[%clk 0:01:55]} 21. Bxe7 {[%clk 0:01:30]}  Rfe8 {[%clk 0:01:56]} 22. Ba3 {[%clk 0:01:29]}  b5 {[%clk 0:01:56]} 23. cxb5 {[%clk 0:01:28]}  axb5 {[%clk 0:01:56]} 24. Bxb5 {[%clk 0:01:13]}  Reb8 {[%clk 0:01:57]} 25. Ba4 {[%clk 0:01:12]}  Rd8 {[%clk 0:01:49]} 26. Ke2 {[%clk 0:01:01]}  Bc8 {[%clk 0:01:44]} 27. Rhd1 {[%clk 0:00:54]}  Ba6+ {[%clk 0:01:43]} 28. Ke1 {[%clk 0:00:53]}  Rdc8 {[%clk 0:01:39]} 29. Rxc8+ {[%clk 0:00:38]}  Rxc8 {[%clk 0:01:39]} 30. Bb4 {[%clk 0:00:37]}  Rc2 {[%clk 0:01:35]} 31. Rd8+ {[%clk 0:00:35]}  Bf8 {[%clk 0:01:34]} 32. Bxf8 {[%clk 0:00:32]}  f5 {[%clk 0:01:29]} 33. Bb4+ {[%clk 0:00:30]}  Kf7 {[%clk 0:01:29]} 34. Rd2 {[%clk 0:00:29]}  Rc1+ {[%clk 0:01:27]} 35. Rd1 {[%clk 0:00:29]}  Rc2 {[%clk 0:01:28]} 36. Rd7+ {[%clk 0:00:29]}  Kg8 {[%clk 0:01:27]} 37. Ra7 {[%clk 0:00:22]}  Re2+ {[%clk 0:01:23]} 38. Kd1 {[%clk 0:00:21]}  Bd3 {[%clk 0:01:24]} 39. Bc6 {[%clk 0:00:19]}  Rxf2 {[%clk 0:01:20]} 40. Bd5+ {[%clk 0:00:19]}  Kh8 {[%clk 0:01:21]} 41. Bc3# {[%clk 0:00:19]} 1-0


[Site "https://www.chess.com"]

[Event "Titled Tuesday Blitz August 15 Late 2023"]
[White "Carrasco Miranda, Andres"]
[Black "Bongo Akanga Ndjila, Barthelemy"]
[WhiteFideId "3405990"]
[BlackFideId "10609431"]
[WhiteElo "2324"]
[BlackElo "2034"]
[Result "1-0"]
[Round "3"]
[TimeControl "180+1"]
[Date "2023.08.15"]
[WhiteClock "0:01:09"]
[BlackClock "0:00:05"]
[Board "181"]

1. d4 {[%clk 0:02:57]}  d5 {[%clk 0:02:54]} 2. c4 {[%clk 0:02:56]}  e6 {[%clk 0:02:53]} 3. Nf3 {[%clk 0:02:56]}  Nf6 {[%clk 0:02:53]} 4. g3 {[%clk 0:02:56]}  dxc4 {[%clk 0:02:51]} 5. Bg2 {[%clk 0:02:56]}  c5 {[%clk 0:02:51]} 6. O-O {[%clk 0:02:55]}  Nc6 {[%clk 0:02:51]} 7. dxc5 {[%clk 0:02:52]}  Qxd1 {[%clk 0:02:49]} 8. Rxd1 {[%clk 0:02:53]}  Bxc5 {[%clk 0:02:49]} 9. Nbd2 {[%clk 0:02:53]}  c3 {[%clk 0:02:46]} 10. bxc3 {[%clk 0:02:54]}  O-O {[%clk 0:02:45]} 11. Nb3 {[%clk 0:02:54]}  Bb6 {[%clk 0:02:43]} 12. c4 {[%clk 0:02:54]}  Na5 {[%clk 0:02:34]} 13. Ba3 {[%clk 0:02:39]}  Re8 {[%clk 0:02:28]} 14. c5 {[%clk 0:02:33]}  Bc7 {[%clk 0:02:18]} 15. Nfd4 {[%clk 0:02:27]}  Nc4 {[%clk 0:02:17]} 16. Nb5 {[%clk 0:02:19]}  Be5 {[%clk 0:02:12]} 17. Rab1 {[%clk 0:02:07]}  Nxa3 {[%clk 0:01:57]} 18. Nxa3 {[%clk 0:02:08]}  Bd7 {[%clk 0:01:48]} 19. Nc4 {[%clk 0:02:08]}  Bc7 {[%clk 0:01:33]} 20. Bxb7 {[%clk 0:02:06]}  Rab8 {[%clk 0:01:32]} 21. c6 {[%clk 0:02:07]}  Bc8 {[%clk 0:01:19]} 22. Nc5 {[%clk 0:01:59]}  Nd5 {[%clk 0:01:15]} 23. Na6 {[%clk 0:01:46]}  Bxb7 {[%clk 0:01:00]} 24. Rxb7 {[%clk 0:01:40]}  Rxb7 {[%clk 0:00:49]} 25. cxb7 {[%clk 0:01:39]}  Bb8 {[%clk 0:00:48]} 26. Na5 {[%clk 0:01:27]}  Nc3 {[%clk 0:00:22]} 27. Rd7 {[%clk 0:01:14]}  Nxe2+ {[%clk 0:00:11]} 28. Kf1 {[%clk 0:01:14]}  Nc3 {[%clk 0:00:09]} 29. Nxb8 {[%clk 0:01:09]}  Rxb8 {[%clk 0:00:09]} 30. Rc7 {[%clk 0:01:10]}  Nb5 {[%clk 0:00:05]} 31. Rc8+ {[%clk 0:01:09]} 1-0


[Site "https://www.chess.com"]

[Event "Titled Tuesday Blitz August 15 Late 2023"]
[White "Fedoseev, Vladimir"]
[Black "Eljanov, Pavel"]
[WhiteFideId "24130737"]
[BlackFideId "14102951"]
[WhiteElo "3121"]
[BlackElo "2909"]
[Result "1/2-1/2"]
[Round "4"]
[TimeControl "180+1"]
[Date "2023.08.15"]
[WhiteClock "0:00:09"]
[BlackClock "0:00:11"]
[Board "3"]

1. b3 {[%clk 0:02:31]}  d5 {[%clk 0:02:57]} 2. Bb2 {[%clk 0:02:31]}  Bf5 {[%clk 0:02:54]} 3. e3 {[%clk 0:02:27]}  e6 {[%clk 0:02:54]} 4. Be2 {[%clk 0:02:26]}  Nf6 {[%clk 0:02:52]} 5. h4 {[%clk 0:02:21]}  h6 {[%clk 0:02:42]} 6. g4 {[%clk 0:02:19]}  Be4 {[%clk 0:02:39]} 7. f3 {[%clk 0:02:18]}  Bg6 {[%clk 0:02:37]} 8. f4 {[%clk 0:02:13]}  h5 {[%clk 0:02:33]} 9. g5 {[%clk 0:02:12]}  Ne4 {[%clk 0:02:24]} 10. Nc3 {[%clk 0:02:09]}  Ng3 {[%clk 0:02:05]} 11. Rh3 {[%clk 0:02:08]}  Nxe2 {[%clk 0:02:05]} 12. Ncxe2 {[%clk 0:02:07]}  c5 {[%clk 0:02:03]} 13. Nf3 {[%clk 0:02:02]}  Nc6 {[%clk 0:02:03]} 14. d3 {[%clk 0:01:56]}  Qc7 {[%clk 0:01:59]} 15. Qd2 {[%clk 0:01:52]}  O-O-O {[%clk 0:01:57]} 16. O-O-O {[%clk 0:01:52]}  c4 {[%clk 0:01:53]} 17. Kb1 {[%clk 0:01:50]}  Bb4 {[%clk 0:01:49]} 18. Bc3 {[%clk 0:01:48]}  Qa5 {[%clk 0:01:44]} 19. Ne5 {[%clk 0:01:12]}  Bxc3 {[%clk 0:01:43]} 20. Qxc3 {[%clk 0:01:13]}  Qxc3 {[%clk 0:01:42]} 21. Nxc3 {[%clk 0:01:14]}  Nxe5 {[%clk 0:01:41]} 22. fxe5 {[%clk 0:01:15]}  cxd3 {[%clk 0:01:39]} 23. cxd3 {[%clk 0:01:14]}  d4 {[%clk 0:01:14]} 24. Nb5 {[%clk 0:01:13]}  Rd5 {[%clk 0:01:09]} 25. Nxd4 {[%clk 0:00:37]}  Rhd8 {[%clk 0:01:09]} 26. Kb2 {[%clk 0:00:27]}  Rxe5 {[%clk 0:01:07]} 27. Rf3 {[%clk 0:00:23]}  Red5 {[%clk 0:01:03]} 28. Kc3 {[%clk 0:00:19]}  Kb8 {[%clk 0:00:58]} 29. Rf2 {[%clk 0:00:18]}  e5 {[%clk 0:00:54]} 30. Nf5 {[%clk 0:00:17]}  e4 {[%clk 0:00:54]} 31. Ne7 {[%clk 0:00:14]}  Rxd3+ {[%clk 0:00:41]} 32. Rxd3 {[%clk 0:00:14]}  Rxd3+ {[%clk 0:00:40]} 33. Kc4 {[%clk 0:00:14]}  Rxe3 {[%clk 0:00:32]} 34. Nxg6 {[%clk 0:00:14]}  fxg6 {[%clk 0:00:33]} 35. Rf8+ {[%clk 0:00:14]}  Kc7 {[%clk 0:00:33]} 36. Rf7+ {[%clk 0:00:15]}  Kd6 {[%clk 0:00:32]} 37. Kd4 {[%clk 0:00:16]}  Rh3 {[%clk 0:00:14]} 38. Rxg7 {[%clk 0:00:16]}  Rxh4 {[%clk 0:00:15]} 39. Rxg6+ {[%clk 0:00:16]}  Ke7 {[%clk 0:00:15]} 40. Rg7+ {[%clk 0:00:15]}  Ke6 {[%clk 0:00:15]} 41. Rxb7 {[%clk 0:00:14]}  Rg4 {[%clk 0:00:12]} 42. Rxa7 {[%clk 0:00:14]}  h4 {[%clk 0:00:12]} 43. Rh7 {[%clk 0:00:12]}  Kf5 {[%clk 0:00:12]} 44. a4 {[%clk 0:00:12]}  Kxg5 {[%clk 0:00:09]} 45. a5 {[%clk 0:00:09]}  e3+ {[%clk 0:00:09]} 46. Kxe3 {[%clk 0:00:08]}  Rg3+ {[%clk 0:00:10]} 47. Kd4 {[%clk 0:00:08]}  Rxb3 {[%clk 0:00:10]} 48. Kc5 {[%clk 0:00:08]}  Kg4 {[%clk 0:00:10]} 49. a6 {[%clk 0:00:09]}  Ra3 {[%clk 0:00:10]} 50. a7 {[%clk 0:00:09]}  h3 {[%clk 0:00:11]} 51. Kb6 {[%clk 0:00:09]}  Kg3 {[%clk 0:00:11]} 52. Rh5 {[%clk 0:00:08]}  Rxa7 {[%clk 0:00:10]} 53. Kxa7 {[%clk 0:00:08]}  h2 {[%clk 0:00:10]} 54. Kb6 {[%clk 0:00:08]}  Kg2 {[%clk 0:00:11]} 55. Rxh2+ {[%clk 0:00:09]}  Kxh2 {[%clk 0:00:11]} 1/2-1/2


[Site "https://www.chess.com"]

[Event "Titled Tuesday Blitz August 15 Late 2023"]
[White "Duda, Jan-Krzysztof"]
[Black "Lysyj, Igor"]
[WhiteFideId "1170546"]
[BlackFideId "4150120"]
[WhiteElo "3053"]
[BlackElo "2873"]
[Result "1-0"]
[Round "4"]
[TimeControl "180+1"]
[Date "2023.08.15"]
[WhiteClock "0:00:05"]
[BlackClock "0:00:02"]
[Board "6"]

1. Nf3 {[%clk 0:03:00]}  Nf6 {[%clk 0:02:58]} 2. g3 {[%clk 0:03:00]}  d5 {[%clk 0:02:57]} 3. Bg2 {[%clk 0:02:59]}  e6 {[%clk 0:02:57]} 4. b3 {[%clk 0:02:56]}  Be7 {[%clk 0:02:57]} 5. Bb2 {[%clk 0:02:56]}  O-O {[%clk 0:02:57]} 6. c4 {[%clk 0:02:55]}  c5 {[%clk 0:02:55]} 7. e3 {[%clk 0:02:56]}  b6 {[%clk 0:02:53]} 8. O-O {[%clk 0:02:55]}  Bb7 {[%clk 0:02:53]} 9. Qe2 {[%clk 0:02:56]}  Nc6 {[%clk 0:02:52]} 10. Rd1 {[%clk 0:02:54]}  Rc8 {[%clk 0:02:49]} 11. Na3 {[%clk 0:02:44]}  Qc7 {[%clk 0:02:45]} 12. Rac1 {[%clk 0:02:39]}  Rfd8 {[%clk 0:02:42]} 13. cxd5 {[%clk 0:02:35]}  Nxd5 {[%clk 0:02:42]} 14. Nc4 {[%clk 0:02:35]}  Qb8 {[%clk 0:02:39]} 15. a3 {[%clk 0:02:33]}  Bf6 {[%clk 0:02:31]} 16. e4 {[%clk 0:02:22]}  Bxb2 {[%clk 0:02:06]} 17. exd5 {[%clk 0:02:22]}  Bxc1 {[%clk 0:02:06]} 18. dxc6 {[%clk 0:02:22]}  Bxc6 {[%clk 0:02:06]} 19. Rxc1 {[%clk 0:02:22]}  Bd5 {[%clk 0:02:06]} 20. Rc3 {[%clk 0:02:18]}  b5 {[%clk 0:02:05]} 21. Ne3 {[%clk 0:02:18]}  Ba8 {[%clk 0:02:02]} 22. Ng5 {[%clk 0:02:06]}  h6 {[%clk 0:01:55]} 23. Bxa8 {[%clk 0:02:03]}  Qxa8 {[%clk 0:01:54]} 24. Nf3 {[%clk 0:01:58]}  Qb7 {[%clk 0:01:48]} 25. a4 {[%clk 0:01:52]}  a6 {[%clk 0:01:33]} 26. h4 {[%clk 0:01:50]}  Qe4 {[%clk 0:01:25]} 27. Kg2 {[%clk 0:01:36]}  bxa4 {[%clk 0:01:09]} 28. Rc4 {[%clk 0:01:33]}  Rd4 {[%clk 0:01:09]} 29. d3 {[%clk 0:01:31]}  Qb7 {[%clk 0:01:04]} 30. bxa4 {[%clk 0:01:31]}  Rxc4 {[%clk 0:00:57]} 31. Nxc4 {[%clk 0:01:32]}  Rd8 {[%clk 0:00:56]} 32. a5 {[%clk 0:01:29]}  Qd5 {[%clk 0:00:55]} 33. Qe3 {[%clk 0:01:18]}  Qxd3 {[%clk 0:00:53]} 34. Qxc5 {[%clk 0:01:17]}  Qe4 {[%clk 0:00:50]} 35. Qb6 {[%clk 0:01:10]}  Rd3 {[%clk 0:00:49]} 36. Ne3 {[%clk 0:00:51]}  Qa8 {[%clk 0:00:39]} 37. Qc5 {[%clk 0:00:48]}  Rb3 {[%clk 0:00:36]} 38. Qc4 {[%clk 0:00:33]}  Rb5 {[%clk 0:00:35]} 39. Qc3 {[%clk 0:00:33]}  Qd8 {[%clk 0:00:21]} 40. Ne5 {[%clk 0:00:33]}  Qa8+ {[%clk 0:00:18]} 41. Kh2 {[%clk 0:00:31]}  f6 {[%clk 0:00:18]} 42. Ng6 {[%clk 0:00:26]}  Kh7 {[%clk 0:00:11]} 43. Qd3 {[%clk 0:00:23]}  f5 {[%clk 0:00:11]} 44. Nf4 {[%clk 0:00:23]}  Qf3 {[%clk 0:00:10]} 45. Qc2 {[%clk 0:00:17]}  Rxa5 {[%clk 0:00:09]} 46. Nxe6 {[%clk 0:00:16]}  Re5 {[%clk 0:00:08]} 47. Nd4 {[%clk 0:00:15]}  Qe4 {[%clk 0:00:08]} 48. Qxe4 {[%clk 0:00:07]}  Rxe4 {[%clk 0:00:08]} 49. Ndxf5 {[%clk 0:00:07]}  a5 {[%clk 0:00:08]} 50. Nd6 {[%clk 0:00:07]}  Rb4 {[%clk 0:00:07]} 51. Ndc4 {[%clk 0:00:07]}  a4 {[%clk 0:00:07]} 52. Na3 {[%clk 0:00:08]}  Rb3 {[%clk 0:00:07]} 53. Nec2 {[%clk 0:00:06]}  g5 {[%clk 0:00:07]} 54. h5 {[%clk 0:00:06]}  g4 {[%clk 0:00:06]} 55. Kg2 {[%clk 0:00:06]}  Kg7 {[%clk 0:00:07]} 56. Kf1 {[%clk 0:00:06]}  Kf6 {[%clk 0:00:07]} 57. Ke2 {[%clk 0:00:07]}  Kg5 {[%clk 0:00:07]} 58. Kd2 {[%clk 0:00:04]}  Kxh5 {[%clk 0:00:07]} 59. Nc4 {[%clk 0:00:04]}  Kg5 {[%clk 0:00:06]} 60. Nd4 {[%clk 0:00:05]}  Rb4 {[%clk 0:00:06]} 61. Kc3 {[%clk 0:00:05]}  Rb1 {[%clk 0:00:06]} 62. Ne6+ {[%clk 0:00:05]}  Kf6 {[%clk 0:00:06]} 63. Nc5 {[%clk 0:00:04]}  Rf1 {[%clk 0:00:05]} 64. Nd2 {[%clk 0:00:03]}  Re1 {[%clk 0:00:05]} 65. Nxa4 {[%clk 0:00:03]}  Kg6 {[%clk 0:00:05]} 66. Nc5 {[%clk 0:00:04]}  h5 {[%clk 0:00:05]} 67. Nd3 {[%clk 0:00:04]}  Re2 {[%clk 0:00:05]} 68. Nf4+ {[%clk 0:00:04]}  Kf5 {[%clk 0:00:02]} 69. Nxe2 {[%clk 0:00:05]} 1-0


[Site "https://www.chess.com"]

[Event "Titled Tuesday Blitz August 15 Late 2023"]
[White "Sadhwani, Raunak"]
[Black "Remizov, Yaroslav"]
[WhiteFideId "35093487"]
[BlackFideId "34134015"]
[WhiteElo "3017"]
[BlackElo "2848"]
[Result "1-0"]
[Round "4"]
[TimeControl "180+1"]
[Date "2023.08.15"]
[WhiteClock "0:01:04"]
[BlackClock "0:00:06"]
[Board "9"]

1. d4 {[%clk 0:02:51]}  Nf6 {[%clk 0:02:59]} 2. Nc3 {[%clk 0:02:51]}  d5 {[%clk 0:02:55]} 3. Bf4 {[%clk 0:02:50]}  c6 {[%clk 0:02:48]} 4. e3 {[%clk 0:02:49]}  Qb6 {[%clk 0:02:48]} 5. Rb1 {[%clk 0:02:46]}  Bf5 {[%clk 0:02:46]} 6. Bd3 {[%clk 0:02:44]}  Bxd3 {[%clk 0:02:44]} 7. cxd3 {[%clk 0:02:45]}  e6 {[%clk 0:02:41]} 8. Nf3 {[%clk 0:02:45]}  Nbd7 {[%clk 0:02:41]} 9. O-O {[%clk 0:02:45]}  Be7 {[%clk 0:02:41]} 10. h3 {[%clk 0:02:45]}  O-O {[%clk 0:02:39]} 11. a3 {[%clk 0:02:45]}  a5 {[%clk 0:02:35]} 12. Qc2 {[%clk 0:02:45]}  Rfc8 {[%clk 0:02:33]} 13. Na4 {[%clk 0:02:43]}  Qd8 {[%clk 0:02:30]} 14. Nc5 {[%clk 0:02:42]}  b6 {[%clk 0:02:20]} 15. Nxd7 {[%clk 0:02:37]}  Nxd7 {[%clk 0:02:19]} 16. Rfc1 {[%clk 0:02:35]}  h6 {[%clk 0:02:12]} 17. Qa4 {[%clk 0:02:34]}  b5 {[%clk 0:02:07]} 18. Qc2 {[%clk 0:02:34]}  c5 {[%clk 0:02:06]} 19. dxc5 {[%clk 0:02:30]}  Nxc5 {[%clk 0:02:01]} 20. d4 {[%clk 0:02:30]}  Ne4 {[%clk 0:01:56]} 21. Qe2 {[%clk 0:02:28]}  b4 {[%clk 0:01:50]} 22. a4 {[%clk 0:02:28]}  Qe8 {[%clk 0:01:48]} 23. Qd1 {[%clk 0:02:15]}  Bd6 {[%clk 0:01:36]} 24. Bxd6 {[%clk 0:02:15]}  Nxd6 {[%clk 0:01:37]} 25. Ne5 {[%clk 0:02:15]}  Nc4 {[%clk 0:01:35]} 26. Nd3 {[%clk 0:02:13]}  Rc6 {[%clk 0:01:26]} 27. b3 {[%clk 0:02:12]}  Nd6 {[%clk 0:01:23]} 28. Rxc6 {[%clk 0:02:12]}  Qxc6 {[%clk 0:01:24]} 29. Rc1 {[%clk 0:02:13]}  Qe8 {[%clk 0:01:23]} 30. Rc7 {[%clk 0:02:05]}  Ne4 {[%clk 0:01:17]} 31. Qc2 {[%clk 0:02:03]}  Nc3 {[%clk 0:00:59]} 32. Ne5 {[%clk 0:02:02]}  f5 {[%clk 0:00:56]} 33. Qd3 {[%clk 0:01:53]}  Rc8 {[%clk 0:00:53]} 34. Ra7 {[%clk 0:01:49]}  Ne4 {[%clk 0:00:39]} 35. Qd1 {[%clk 0:01:47]}  Qd8 {[%clk 0:00:33]} 36. f3 {[%clk 0:01:27]}  Qg5 {[%clk 0:00:22]} 37. Qe1 {[%clk 0:01:12]}  Ng3 {[%clk 0:00:13]} 38. f4 {[%clk 0:01:04]}  Qh4 {[%clk 0:00:03]} 39. Nf3 {[%clk 0:01:02]}  Ne2+ {[%clk 0:00:03]} 40. Qxe2 {[%clk 0:01:02]}  Qg3 {[%clk 0:00:03]} 41. Qe1 {[%clk 0:01:02]}  Qxe1+ {[%clk 0:00:03]} 42. Nxe1 {[%clk 0:01:03]}  Rc3 {[%clk 0:00:04]} 43. Kf2 {[%clk 0:01:02]}  Rxb3 {[%clk 0:00:04]} 44. Rxa5 {[%clk 0:01:03]}  Rc3 {[%clk 0:00:04]} 45. Rb5 {[%clk 0:01:03]}  b3 {[%clk 0:00:04]} 46. a5 {[%clk 0:01:03]}  Kf7 {[%clk 0:00:04]} 47. a6 {[%clk 0:01:03]}  Rc1 {[%clk 0:00:04]} 48. Rxb3 {[%clk 0:01:03]}  Ra1 {[%clk 0:00:05]} 49. Rb7+ {[%clk 0:01:04]}  Kf6 {[%clk 0:00:05]} 50. a7 {[%clk 0:01:05]}  g5 {[%clk 0:00:06]} 51. Nf3 {[%clk 0:01:04]}  Ra2+ {[%clk 0:00:05]} 52. Kg1 {[%clk 0:01:04]}  g4 {[%clk 0:00:05]} 53. Ne5 {[%clk 0:01:04]}  g3 {[%clk 0:00:06]} 54. Rf7# {[%clk 0:01:04]} 1-0


[Site "https://www.chess.com"]

[Event "Titled Tuesday Blitz August 15 Late 2023"]
[White "Andreikin, Dmitry"]
[Black "Mekhitarian, Krikor Sevag"]
[WhiteFideId "4158814"]
[BlackFideId "2107660"]
[WhiteElo "3016"]
[BlackElo "2814"]
[Result "1-0"]
[Round "4"]
[TimeControl "180+1"]
[Date "2023.08.15"]
[WhiteClock "0:01:49"]
[BlackClock "0:00:01"]
[Board "10"]

1. d4 {[%clk 0:03:00]}  Nf6 {[%clk 0:02:59]} 2. Bg5 {[%clk 0:03:00]}  d5 {[%clk 0:02:59]} 3. Nd2 {[%clk 0:02:59]}  c5 {[%clk 0:02:58]} 4. dxc5 {[%clk 0:03:00]}  e6 {[%clk 0:02:53]} 5. e4 {[%clk 0:03:00]}  Bxc5 {[%clk 0:02:25]} 6. Qe2 {[%clk 0:02:59]}  h6 {[%clk 0:02:14]} 7. Bh4 {[%clk 0:02:58]}  Be7 {[%clk 0:01:58]} 8. O-O-O {[%clk 0:02:56]}  O-O {[%clk 0:01:58]} 9. f4 {[%clk 0:02:56]}  Nxe4 {[%clk 0:01:44]} 10. Bxe7 {[%clk 0:02:55]}  Qxe7 {[%clk 0:01:45]} 11. Nxe4 {[%clk 0:02:56]}  dxe4 {[%clk 0:01:46]} 12. Qxe4 {[%clk 0:02:56]}  Nd7 {[%clk 0:01:47]} 13. Nf3 {[%clk 0:02:53]}  Nf6 {[%clk 0:01:47]} 14. Qe3 {[%clk 0:02:50]}  b6 {[%clk 0:01:44]} 15. Ne5 {[%clk 0:02:45]}  Bb7 {[%clk 0:01:44]} 16. Bd3 {[%clk 0:02:45]}  Rad8 {[%clk 0:01:39]} 17. Rhg1 {[%clk 0:02:44]}  Qb4 {[%clk 0:01:31]} 18. a3 {[%clk 0:02:33]}  Qc5 {[%clk 0:01:11]} 19. Qxc5 {[%clk 0:02:29]}  bxc5 {[%clk 0:01:12]} 20. g4 {[%clk 0:02:25]}  Rd4 {[%clk 0:00:37]} 21. g5 {[%clk 0:02:23]}  hxg5 {[%clk 0:00:38]} 22. fxg5 {[%clk 0:02:22]}  Ne4 {[%clk 0:00:34]} 23. c3 {[%clk 0:02:08]}  Rdd8 {[%clk 0:00:27]} 24. g6 {[%clk 0:02:04]}  fxg6 {[%clk 0:00:20]} 25. Rxg6 {[%clk 0:01:59]}  Nf6 {[%clk 0:00:17]} 26. Rdg1 {[%clk 0:01:57]}  Nh5 {[%clk 0:00:12]} 27. R6g5 {[%clk 0:01:50]}  Bf3 {[%clk 0:00:07]} 28. Bc4 {[%clk 0:01:50]}  Rf6 {[%clk 0:00:01]} 29. Nxf3 {[%clk 0:01:49]} 1-0


[Site "https://www.chess.com"]

[Event "Titled Tuesday Blitz August 15 Late 2023"]
[White "Lobanov, Sergei"]
[Black "Xiong, Jeffery"]
[WhiteFideId "24183750"]
[BlackFideId "2047640"]
[WhiteElo "2759"]
[BlackElo "2978"]
[Result "1/2-1/2"]
[Round "4"]
[TimeControl "180+1"]
[Date "2023.08.15"]
[WhiteClock "0:00:09"]
[BlackClock "0:00:11"]
[Board "12"]

1. d4 {[%clk 0:03:00]}  d5 {[%clk 0:03:00]} 2. c4 {[%clk 0:03:00]}  dxc4 {[%clk 0:03:01]} 3. Nf3 {[%clk 0:03:00]}  Nf6 {[%clk 0:03:00]} 4. e3 {[%clk 0:03:01]}  e6 {[%clk 0:03:01]} 5. Bxc4 {[%clk 0:03:01]}  c5 {[%clk 0:03:02]} 6. O-O {[%clk 0:03:01]}  Nc6 {[%clk 0:03:02]} 7. Re1 {[%clk 0:02:56]}  Be7 {[%clk 0:02:59]} 8. Bd3 {[%clk 0:02:53]}  O-O {[%clk 0:02:57]} 9. a3 {[%clk 0:02:40]}  cxd4 {[%clk 0:02:55]} 10. exd4 {[%clk 0:02:41]}  b6 {[%clk 0:02:55]} 11. Nc3 {[%clk 0:02:40]}  Bb7 {[%clk 0:02:55]} 12. Bg5 {[%clk 0:02:40]}  h6 {[%clk 0:02:55]} 13. Bh4 {[%clk 0:02:38]}  Rc8 {[%clk 0:02:55]} 14. Rc1 {[%clk 0:02:38]}  Na5 {[%clk 0:02:55]} 15. Ne5 {[%clk 0:02:27]}  Nc6 {[%clk 0:02:55]} 16. Nf3 {[%clk 0:02:26]}  Nh5 {[%clk 0:02:41]} 17. Bxe7 {[%clk 0:01:54]}  Nxe7 {[%clk 0:02:41]} 18. Ne5 {[%clk 0:01:53]}  Nf4 {[%clk 0:02:41]} 19. Be4 {[%clk 0:01:53]}  Bxe4 {[%clk 0:02:41]} 20. Rxe4 {[%clk 0:01:51]}  Nfd5 {[%clk 0:02:41]} 21. Re1 {[%clk 0:01:39]}  Nf5 {[%clk 0:02:25]} 22. Qd2 {[%clk 0:01:15]}  Nxc3 {[%clk 0:01:53]} 23. bxc3 {[%clk 0:01:14]}  b5 {[%clk 0:01:53]} 24. Qd3 {[%clk 0:01:05]}  Qd5 {[%clk 0:01:51]} 25. Rb1 {[%clk 0:00:59]}  a6 {[%clk 0:01:50]} 26. h3 {[%clk 0:00:50]}  Rfd8 {[%clk 0:01:42]} 27. Ra1 {[%clk 0:00:35]}  Qb3 {[%clk 0:01:24]} 28. Rec1 {[%clk 0:00:28]}  Qd5 {[%clk 0:01:24]} 29. Re1 {[%clk 0:00:27]}  Qb3 {[%clk 0:01:24]} 30. Rec1 {[%clk 0:00:27]}  Nd6 {[%clk 0:01:24]} 31. a4 {[%clk 0:00:21]}  bxa4 {[%clk 0:00:48]} 32. Qxa6 {[%clk 0:00:21]}  Ra8 {[%clk 0:00:37]} 33. Qc6 {[%clk 0:00:21]}  a3 {[%clk 0:00:28]} 34. c4 {[%clk 0:00:21]}  a2 {[%clk 0:00:26]} 35. c5 {[%clk 0:00:20]}  Nf5 {[%clk 0:00:27]} 36. Qc7 {[%clk 0:00:17]}  Rf8 {[%clk 0:00:27]} 37. Nc6 {[%clk 0:00:15]}  Qd5 {[%clk 0:00:23]} 38. Ne7+ {[%clk 0:00:12]}  Nxe7 {[%clk 0:00:23]} 39. Qxe7 {[%clk 0:00:13]}  Qxd4 {[%clk 0:00:21]} 40. c6 {[%clk 0:00:13]}  Rfc8 {[%clk 0:00:16]} 41. Qb7 {[%clk 0:00:12]}  Qd5 {[%clk 0:00:12]} 42. Rd1 {[%clk 0:00:12]}  Qxc6 {[%clk 0:00:12]} 43. Rd8+ {[%clk 0:00:12]}  Rxd8 {[%clk 0:00:07]} 44. Qxc6 {[%clk 0:00:12]}  Ra7 {[%clk 0:00:07]} 45. Qc2 {[%clk 0:00:05]}  Rda8 {[%clk 0:00:07]} 46. h4 {[%clk 0:00:05]}  h5 {[%clk 0:00:07]} 47. g3 {[%clk 0:00:05]}  Ra4 {[%clk 0:00:08]} 48. Kg2 {[%clk 0:00:05]}  g6 {[%clk 0:00:08]} 49. Qb3 {[%clk 0:00:06]}  Kg7 {[%clk 0:00:09]} 50. Qc3+ {[%clk 0:00:07]}  Kg8 {[%clk 0:00:09]} 51. Qc2 {[%clk 0:00:07]}  Kg7 {[%clk 0:00:10]} 52. Qc3+ {[%clk 0:00:08]}  Kg8 {[%clk 0:00:11]} 53. Qc2 {[%clk 0:00:09]}  Kg7 {[%clk 0:00:11]} 54. Qc3+ {[%clk 0:00:09]} 1/2-1/2


[Site "https://www.chess.com"]